bitfinex/quotes_ETHUSD_20241023
["timestamp","ask_amount","ask_price","bid_price","bid_amount"]
[1729710625734,7.76821848,2496.5,2496.1,0.09011011]
[1729710625935,7.76821848,2496.5,2496.1,0.10011011]
[1729710626471,7.76821848,2496.5,2496.1,0.02]
[1729710626682,3.76259848,2496.3,2496.1,0.02]
[1729710629296,4.00612,2496.2,2496.0,1.5142]
[1729710629456,7.76883848,2496.1,2496.0,1.5142]
[1729710632459,3.76259848,2496.1,2496.0,1.5142]
[1729710632879,7.76883848,2496.1,2496.0,1.5142]
[1729710634191,10.76883848,2496.1,2496.0,1.5142]
[1729710634795,6.76259848,2496.1,2496.0,1.5142]
[1729710635095,10.76883848,2496.1,2496.0,1.5142]
[1729710636597,10.92173078,2496.1,2496.0,1.5142]
[1729710637555,6.91549078,2496.1,2496.0,1.5142]
[1729710638189,10.92173078,2496.1,2496.0,1.5142]
[1729710641417,3.0,2496.0,2495.8,1.6373]
[1729710641559,10.76916848,2495.9,2495.8,1.6373]
[1729710641766,10.92237265,2495.9,2495.6,1.6373]
[1729710641962,3.0,2495.7,2495.6,1.6373]
[1729710642156,3.15319674,2495.8,2495.6,1.6373]
[1729710642384,3.0,2495.8,2495.6,1.6373]
[1729710642590,0.15319674,2495.7,2495.6,1.6373]
[1729710642792,2.5,2495.8,2495.6,1.6373]
[1729710643097,0.15319674,2495.7,2495.6,1.6373]
[1729710643470,2.5,2495.8,2495.6,1.6373]
[1729710643799,0.15319674,2495.7,2495.6,1.6373]
[1729710644009,2.5,2495.8,2495.6,1.71742503]
[1729710644303,0.15319674,2495.7,2495.6,1.71742503]
[1729710644672,3.0,2495.8,2495.6,1.71742503]
[1729710645013,0.15319674,2495.7,2495.6,1.71742503]
[1729710645160,7.00673,2495.8,2495.6,1.6373]
[1729710645363,7.00673,2495.8,2495.7,0.080126]
[1729710646096,3.0,2495.8,2495.5,0.01]
[1729710646300,3.76259848,2495.7,2495.5,0.01]
[1729710646603,3.0,2495.7,2495.5,0.01]
[1729710647022,7.00692,2495.7,2495.5,0.01]
[1729710647569,12.33884848,2495.6,2495.5,0.01]
[1729710647788,7.00849,2494.7,2494.6,1.5403]
[1729710648000,7.00849,2494.7,2494.3,0.16]
[1729710648001,4.00898,2494.4,2494.3,1.6889]
[1729710648209,3.0,2494.4,2494.3,1.6789]
[1729710648499,7.00898,2494.4,2494.3,1.6789]
[1729710648999,3.0,2494.4,2494.3,1.6789]
[1729710649214,7.00898,2494.4,2494.3,0.15]
[1729710650789,8.63808,2494.4,2494.3,0.15]
[1729710650988,7.00898,2494.4,2494.3,0.15]
[1729710651624,7.16217674,2494.4,2494.3,0.15]
[1729710663098,7.16217674,2494.4,2494.3,0.23017502]
[1729710663539,7.16217674,2494.4,2494.3,0.15]
[1729710664399,7.16217674,2494.4,2494.3,0.23017229]
[1729710665628,7.16217674,2494.4,2494.3,0.15]
[1729710668047,0.15319674,2494.4,2494.3,0.16]
[1729710668344,0.06942191,2494.6,2494.4,1.5144]
[1729710668544,4.07808191,2494.6,2494.5,0.08016137]
[1729710668950,4.00866,2494.6,2494.5,0.08016137]
[1729710669108,4.00898,2494.4,2494.3,0.15]
[1729710670116,7.00898,2494.4,2494.3,0.15]
[1729710672526,7.00898,2494.4,2494.3,1.8023]
[1729710673254,3.0,2494.4,2494.3,1.8023]
[1729710673453,0.06925131,2494.6,2494.4,0.01]
[1729710673660,0.06925131,2494.6,2494.5,1.74245256]
[1729710673832,3.76259848,2495.1,2495.0,1.6523]
[1729710674955,7.77044848,2495.1,2495.0,1.6523]
[1729710675129,10.77044848,2495.1,2495.0,1.6523]
[1729710675332,4.00833,2494.8,2494.7,1.6523]
[1729710675534,7.77092848,2494.8,2494.7,1.6523]
[1729710675938,10.77092848,2494.8,2494.7,1.6523]
[1729710676146,10.77092848,2494.8,2494.4,0.02]
[1729710676358,4.00865,2494.6,2494.5,1.6523]
[1729710676660,7.00851,2494.7,2494.5,1.6523]
[1729710676835,3.0,2494.7,2494.5,1.6523]
[1729710677034,7.77124848,2494.6,2494.5,1.6523]
[1729710677233,4.00891,2494.5,2494.3,1.8023]
[1729710677435,3.0,2494.5,2494.3,1.8023]
[1729710677754,7.00884,2494.5,2494.3,1.8023]
[1729710678123,7.00892,2494.5,2494.3,1.8023]
[1729710678460,7.00892,2494.5,2494.4,0.0801667]
[1729710681530,7.15458871,2494.5,2494.4,0.0801667]
[1729710683961,7.00898,2494.4,2494.3,0.15]
[1729710684137,10.77157848,2494.4,2494.3,0.15]
[1729710684336,10.91756769,2494.4,2494.3,0.15]
[1729710685453,12.49806769,2494.4,2494.3,0.15]
[1729710693039,10.91756769,2494.4,2494.3,0.15]
[1729710694447,10.98658294,2494.4,2494.3,0.15]
[1729710695284,7.91756769,2494.4,2494.3,0.15]
[1729710696842,6.90858769,2494.4,2494.3,0.15]
[1729710697180,3.90858769,2494.4,2494.3,0.15]
[1729710698046,0.14598921,2494.4,2494.3,1.7944]
[1729710698245,3.76259848,2494.6,2494.4,0.01]
[1729710699086,3.76259848,2494.6,2494.4,0.1001618]
[1729710699380,3.76259848,2494.6,2494.5,0.0801618]
[1729710699565,3.76259848,2494.6,2494.5,1.7245618]
[1729710699940,3.76259848,2494.8,2494.5,1.7245618]
[1729710700975,4.00849,2494.7,2494.6,0.0801564]
[1729710701306,4.00886,2494.5,2494.3,1.7944]
[1729710701441,3.76259848,2494.4,2494.3,1.7944]
[1729710702146,7.77157848,2494.4,2494.3,1.7944]
[1729710702980,10.77157848,2494.4,2494.3,0.15]
[1729710705997,6.76259848,2494.4,2494.3,1.7308]
[1729710706198,6.76259848,2494.4,2494.3,1.7408]
[1729710707072,6.76259848,2494.4,2494.3,1.7308]
[1729710708505,10.77157848,2494.4,2494.3,1.7308]
[1729710708874,10.77157848,2494.4,2494.3,0.15]
[1729710711581,10.91760496,2494.4,2494.3,0.15]
[1729710714920,7.15500648,2494.4,2494.3,0.15]
[1729710715429,10.91760496,2494.4,2494.3,0.15]
[1729710722831,12.47970496,2494.4,2494.3,0.15]
[1729710731712,10.91760496,2494.4,2494.3,0.15]
[1729710739723,7.15500648,2494.4,2494.3,0.15]
[1729710739925,10.91760496,2494.4,2494.3,0.15]
[1729710740346,10.98671266,2494.4,2494.3,0.15]
[1729710740710,12.60311266,2494.4,2494.3,0.15]
[1729710742266,4.00962,2494.0,2493.9,0.08017817]
[1729710742563,7.00994,2493.8,2493.7,0.08018569]
[1729710742719,10.77253848,2493.8,2493.7,0.08018569]
[1729710743157,10.91831156,2493.8,2493.7,0.08018569]
[1729710744435,8.77947419,2493.8,2493.7,0.08018569]
[1729710746662,7.15571308,2493.8,2493.7,0.08018569]
[1729710746820,8.77947419,2493.8,2493.7,0.08018569]
[1729710750755,10.4032353,2493.8,2493.7,0.08018569]
[1729710751162,8.77947419,2493.8,2493.7,0.08018569]
[1729710752168,7.15571308,2493.8,2493.7,0.08018569]
[1729710752344,8.77947419,2493.8,2493.7,0.08018569]
[1729710757756,7.15571308,2493.8,2493.7,0.08018569]
[1729710757959,8.77947419,2493.8,2493.7,0.08018569]
[1729710761202,8.77947419,2493.8,2493.3,0.02]
[1729710761203,8.0253953,2493.8,2493.3,0.01]
[1729710761492,8.0253953,2493.8,2492.5,1.2328912]
[1729710761493,4.01187,2492.6,2492.5,1.54]
[1729710761704,4.01233,2492.4,2492.3,1.54]
[1729710762254,4.15760361,2492.4,2492.3,1.54]
[1729710762495,0.14527361,2492.4,2492.1,1.54]
[1729710762727,7.26003222,2492.2,2492.1,1.54]
[1729710763212,7.26003222,2492.2,2491.9,1.54]
[1729710763213,4.01268,2492.1,2491.9,1.54]
[1729710763374,4.01268,2492.1,2491.9,1.55]
[1729710763572,4.01284,2492.0,2491.9,1.54]
[1729710763879,7.40563583,2492.0,2491.9,1.55]
[1729710764269,7.93289085,2492.0,2491.9,1.54]
[1729710764473,7.93289085,2492.0,2491.7,0.02]
[1729710764715,3.77477724,2491.8,2491.7,0.02]
[1729710765075,3.92005085,2491.8,2491.7,0.02]
[1729710765686,7.93321085,2491.8,2491.7,0.01]
[1729710766089,4.01332,2491.7,2491.6,1.6033]
[1729710766678,4.15859361,2491.7,2491.6,1.6033]
[1729710767005,4.01348,2491.6,2491.5,0.01]
[1729710767188,7.78825724,2491.6,2491.5,0.01]
[1729710767710,7.93353085,2491.6,2491.5,0.01]
[1729710767880,3.92005085,2491.6,2491.5,0.01]
[1729710768488,0.14527361,2491.6,2491.5,0.09025922]
[1729710768821,3.77477724,2491.7,2491.5,0.09025922]
[1729710769115,0.14527361,2491.6,2491.5,0.09025922]
[1729710769289,0.14527361,2491.6,2491.5,0.01]
[1729710770210,0.14527361,2491.6,2491.4,1.6506124]
[1729710771681,3.77477724,2491.5,2491.4,1.6506124]
[1729710771882,3.91855848,2491.5,2491.4,1.6506124]
[1729710773212,0.14378124,2491.5,2491.4,1.6506124]
[1729710773431,0.14378124,2491.5,2491.4,1.73087295]
[1729710773940,0.14231871,2491.5,2491.4,2.30637025]
[1729710774155,3.0,2491.8,2491.4,1.73087295]
[1729710774283,0.14231871,2491.7,2491.6,0.01]
[1729710774477,4.01278,2492.1,2491.6,1.64324695]
[1729710774478,4.01285,2492.0,2491.6,1.64324695]
[1729710774684,4.15538871,2491.9,2491.6,1.64324695]
[1729710775116,7.93016595,2491.9,2491.6,1.64324695]
[1729710775518,7.93016595,2491.9,2491.6,1.563]
[1729710777021,4.01316,2491.8,2491.6,1.563]
[1729710777223,7.93010595,2491.9,2491.6,1.563]
[1729710777387,0.14245312,2491.7,2491.6,1.563]
[1729710777733,0.14245312,2491.7,2491.6,1.543]
[1729710777940,0.14245312,2491.7,2491.4,1.5904124]
[1729710777941,3.77477724,2491.7,2491.4,1.5904124]
[1729710778143,7.01364,2491.5,2491.4,0.0509124]
[1729710778432,10.78841724,2491.5,2491.4,0.0509124]
[1729710778638,10.93079569,2491.5,2491.4,0.0509124]
[1729710783202,12.49199569,2491.5,2491.4,0.0509124]
[1729710785009,12.49199569,2491.5,2490.5,1.6517]
[1729710785010,4.01494,2490.7,2490.5,1.6517]
[1729710785234,7.78971724,2490.7,2490.5,1.6417]
[1729710785434,4.15686349,2490.6,2490.5,1.6417]
[1729710785736,4.15686349,2490.6,2490.1,1.6468]
[1729710785737,4.01569,2490.3,2490.1,1.6468]
[1729710785936,7.79027724,2490.4,2490.1,1.6468]
[1729710786168,7.79027724,2490.4,2490.2,0.08030388]
[1729710786448,3.77477724,2490.4,2490.2,0.08030388]
[1729710786645,0.14158672,2490.3,2490.1,0.58710388]
[1729710787016,3.77477724,2490.4,2490.1,1.04842627]
[1729710787211,0.14158672,2490.2,2490.1,1.04842627]
[1729710787413,3.77477724,2490.4,2490.1,1.04842627]
[1729710787641,0.14158672,2490.2,2490.1,0.58710388]
[1729710787840,7.79019724,2490.4,2490.1,0.58710388]
[1729710788045,0.14158672,2490.2,2490.1,0.58710388]
[1729710788244,3.77477724,2490.4,2490.1,0.58710388]
[1729710788444,0.14158672,2490.2,2490.1,0.58710388]
[1729710788650,3.77477724,2490.4,2490.1,0.58710388]
[1729710788814,0.14158672,2490.2,2490.1,0.58710388]
[1729710789019,10.78989724,2490.6,2490.1,0.58710388]
[1729710789232,10.78989724,2490.6,2490.2,0.46131439]
[1729710789626,3.77477724,2490.8,2490.4,1.587]
[1729710789828,3.77477724,2491.0,2490.5,4.03513]
[1729710790025,3.77477724,2491.0,2490.6,1.587]
[1729710790427,3.77477724,2491.2,2490.8,0.01]
[1729710790768,3.77477724,2491.2,2490.9,1.587]
[1729710791809,3.77477724,2491.2,2491.0,0.08027628]
[1729710792214,3.0,2491.3,2491.0,0.08027628]
[1729710793011,3.77477724,2491.4,2491.0,0.08027628]
[1729710793217,4.01399,2491.3,2491.0,0.34437201]
[1729710793531,3.77477724,2491.4,2491.0,0.34437201]
[1729710793915,3.77477724,2491.4,2491.2,1.5328]
[1729710797362,7.78745724,2492.1,2491.5,5.56104]
[1729710797567,7.78745724,2492.1,2491.7,0.01]
[1729710799223,3.77477724,2491.9,2491.6,0.957472]
[1729710799434,3.77477724,2491.7,2491.6,0.01]
[1729710799734,7.78811724,2491.7,2491.6,0.01]
[1729710801565,7.93021186,2491.7,2491.6,0.09025862]
[1729710803180,3.91687186,2491.7,2491.6,0.09025862]
[1729710804767,3.91687186,2491.7,2491.6,0.01]
[1729710804963,3.91687186,2491.7,2491.5,1.5275]
[1729710805262,3.91687186,2491.7,2491.6,0.08025871]
[1729710805931,0.14209462,2491.7,2491.6,0.08025871]
[1729710806163,1.6324,2492.3,2491.5,5.56099]
[1729710806164,7.78745724,2492.1,2491.5,5.56099]
[1729710806482,0.13618767,2492.0,2491.6,4.569549]
[1729710806964,3.77477724,2491.9,2491.6,0.556099]
[1729710807343,0.13618767,2491.8,2491.6,0.556099]
[1729710807980,0.13618767,2491.8,2491.6,0.566099]
[1729710808968,0.13618767,2491.8,2491.6,0.556099]
[1729710809165,0.13618767,2491.8,2491.7,0.6107089]
[1729710812984,0.13618767,2491.8,2491.6,0.01]
[1729710813190,4.01348,2491.6,2491.3,1.6108]
[1729710813482,3.77477724,2491.7,2491.3,1.6108]
[1729710813483,3.77477724,2491.4,2491.3,1.6108]
[1729710813792,3.91094992,2491.4,2491.3,1.6108]
[1729710814793,0.13617268,2491.4,2491.3,1.6108]
[1729710815087,7.78826724,2491.6,2491.5,0.01]
[1729710815812,7.78826724,2491.6,2491.3,1.6108]
[1729710816183,7.78826724,2491.6,2491.5,0.01]
[1729710816491,7.92443992,2491.6,2491.5,0.01]
[1729710816687,7.92443992,2491.6,2491.3,1.5908]
[1729710816902,4.01373,2491.5,2491.1,1.5942]
[1729710817102,4.01373,2491.5,2491.1,2.18246557]
[1729710817278,7.78828724,2491.6,2491.3,0.01]
[1729710817479,0.13617268,2491.4,2491.1,2.18246557]
[1729710817717,7.78828724,2491.6,2491.1,2.18246557]
[1729710817900,0.13617268,2491.3,2491.1,1.5842]
[1729710818101,0.13617268,2491.3,2491.1,1.5942]
[1729710818826,4.01383,2491.4,2491.1,0.01]
[1729710818981,0.13608278,2491.2,2491.1,0.01]
[1729710819188,7.78860724,2491.4,2491.1,0.01]
[1729710819407,7.78860724,2491.4,2490.9,1.5942]
[1729710819408,0.13608278,2491.2,2490.9,1.5942]
[1729710819616,7.78896724,2491.2,2490.7,1.6042]
[1729710819810,1.5724,2491.4,2490.7,1.5842]
[1729710819811,4.01461,2490.9,2490.7,1.5842]
[1729710820204,4.15068793,2490.8,2490.5,1.5942]
[1729710820520,0.13591793,2490.8,2490.5,1.5942]
[1729710820720,0.13591793,2490.8,2490.7,0.01]
[1729710822196,0.13591793,2490.8,2490.6,0.08028752]
[1729710822396,0.13591793,2490.8,2490.7,0.08028612]
[1729710822594,4.15068793,2490.8,2490.7,0.08028612]
[1729710822809,4.15068793,2490.8,2490.5,1.5842]
[1729710823014,4.01494,2490.7,2490.5,1.5842]
[1729710823210,4.15051315,2490.7,2490.4,0.01]
[1729710823398,0.13557315,2490.7,2490.4,0.01]
[1729710823729,4.01479,2490.8,2490.4,0.09028931]
[1729710823948,0.13557315,2490.6,2490.4,0.09029014]
[1729710824231,4.01479,2490.8,2490.4,0.70257759]
[1729710824436,0.13555066,2490.5,2490.4,0.70257759]
[1729710825101,4.01479,2490.8,2490.4,0.70257759]
[1729710825298,0.13549068,2490.5,2490.4,0.70257759]
[1729710825501,4.01479,2490.8,2490.4,0.70257759]
[1729710825726,0.13549068,2490.5,2490.4,0.70257759]
[1729710825925,4.01479,2490.8,2490.4,0.62228745]
[1729710826433,0.13549068,2490.7,2490.4,0.62228745]
[1729710826802,8.0297,2490.8,2490.4,0.62228745]
[1729710827113,0.13549068,2490.7,2490.4,0.62228745]
[1729710827500,4.01479,2490.8,2490.4,0.62228745]
[1729710827741,0.13549068,2490.6,2490.4,0.62228745]
[1729710828035,8.02966,2490.8,2490.5,0.2980878]
[1729710828036,4.01479,2490.8,2490.5,0.2980878]
[1729710828233,4.01479,2490.8,2490.5,0.21779875]
[1729710828399,4.01479,2490.8,2490.6,0.08028888]
[1729710828599,4.01463,2490.9,2490.5,0.21779875]
[1729710828903,4.01463,2490.9,2490.6,0.0802873]
[1729710829932,4.01463,2490.9,2490.5,0.21779875]
[1729710830248,4.01479,2490.8,2490.5,0.21779875]
[1729710830415,4.01463,2490.9,2490.5,0.21779875]
[1729710830619,4.01463,2490.9,2490.6,0.0802866]
[1729710830819,4.01479,2490.8,2490.5,0.21779875]
[1729710831335,4.01461,2490.9,2490.5,0.21779875]
[1729710831502,4.01477,2490.8,2490.5,0.21779875]
[1729710831702,0.13498101,2490.8,2490.5,0.21779875]
[1729710832744,4.14976101,2490.8,2490.5,0.21779875]
[1729710836330,0.13498101,2490.8,2490.5,0.21779875]
[1729710836539,4.01493,2490.7,2490.5,0.21779875]
[1729710837050,0.13496602,2490.6,2490.5,0.21779875]
[1729710837210,4.15014602,2490.6,2490.4,0.01]
[1729710837410,4.01532,2490.5,2490.3,1.5457]
[1729710837611,0.13495852,2490.4,2490.3,1.5457]
[1729710838542,0.13495852,2490.4,2490.3,1.5557]
[1729710838715,0.13495852,2490.4,2490.3,0.01]
[1729710838913,0.13495852,2490.4,2490.1,1.5693]
[1729710839119,0.13495852,2490.4,2490.3,0.01]
[1729710840016,4.01486,2490.8,2490.3,5.66517342]
[1729710840241,4.14979105,2490.7,2490.3,5.66517342]
[1729710840636,0.13486105,2490.7,2490.3,5.66517342]
[1729710840835,4.01486,2490.8,2490.3,5.66517342]
[1729710841035,0.13478604,2490.7,2490.4,0.56651734]
[1729710841412,8.02972,2490.8,2490.5,0.08028888]
[1729710841608,0.13478604,2490.7,2490.5,0.08028888]
[1729710841808,8.02976,2490.8,2490.5,0.08028888]
[1729710842030,0.13478604,2490.7,2490.5,0.08028888]
[1729710842250,8.02976,2490.8,2490.5,0.7034575]
[1729710842415,0.13478604,2490.6,2490.5,0.7034575]
[1729710842617,8.02976,2490.8,2490.5,0.7034575]
[1729710842837,0.13478604,2490.7,2490.5,0.7034575]
[1729710843042,8.02976,2490.8,2490.5,0.7034575]
[1729710843242,4.14973604,2490.7,2490.5,0.62316862]
[1729710843860,4.14973604,2490.7,2490.3,1.5693]
[1729710844544,1.62730633,2490.6,2490.3,1.5693]
[1729710845119,0.13478604,2490.5,2490.3,1.5693]
[1729710847652,5.76365604,2490.5,2490.3,0.01]
[1729710847837,5.64278633,2490.4,2490.0,0.02]
[1729710848026,4.01548,2490.4,2490.0,4.597411]
[1729710848227,0.13478604,2490.3,2490.2,0.01]
[1729710849102,0.13478604,2490.3,2490.2,0.09030021]
[1729710849433,5.64232633,2490.7,2490.2,5.71724021]
[1729710849660,0.13478604,2490.6,2490.3,1.13604465]
[1729710850031,0.13478604,2490.6,2490.4,0.08029245]
[1729710850645,1.76209237,2490.6,2490.3,1.13604465]
[1729710850846,1.76209237,2490.6,2490.2,5.63691]
[1729710851577,1.76209237,2490.6,2490.2,9.65258]
[1729710851743,1.76209237,2490.6,2490.2,5.63687]
[1729710852141,1.76209237,2490.6,2490.2,9.65253]
[1729710852340,0.13478604,2490.6,2490.2,5.63686]
[1729710852649,0.13478604,2490.6,2490.3,4.579256]
[1729710852877,1.5182,2491.2,2490.5,1.6051]
[1729710853081,1.5182,2491.2,2490.6,0.08027734]
[1729710853082,4.01451,2491.0,2490.6,0.08027734]
[1729710853395,4.01451,2491.0,2490.7,0.08028297]
[1729710853587,4.01451,2491.0,2490.7,0.08028299]
[1729710853791,4.01436,2491.1,2490.7,4.09520299]
[1729710854295,4.01414,2491.2,2490.9,1.6154]
[1729710854474,4.01414,2491.2,2490.9,2.5889333]
[1729710855674,4.01462,2490.9,2490.6,2.20645273]
[1729710855877,4.01462,2490.9,2490.6,1.6354]
[1729710856296,4.01446,2491.0,2490.6,5.65047]
[1729710856476,4.01435,2491.1,2490.7,0.08028426]
[1729710856477,8.02879,2491.1,2490.7,0.08028426]
[1729710856800,4.01435,2491.1,2490.7,0.08028426]
[1729710857218,4.01373,2491.5,2490.9,5.66797]
[1729710857502,4.01373,2491.5,2491.0,0.566797]
[1729710857503,4.01391,2491.4,2491.0,0.566797]
[1729710857663,4.01391,2491.4,2491.0,4.581237]
[1729710857862,9.40237515,2491.6,2491.0,4.581237]
[1729710858063,4.0138,2491.4,2491.1,0.6234737]
[1729710858300,4.01396,2491.3,2491.1,0.6234737]
[1729710858499,4.01396,2491.3,2490.9,1.6535]
[1729710859461,4.01416,2491.2,2490.9,1.6535]
[1729710859665,4.01396,2491.3,2490.9,1.6535]
[1729710860391,4.01419,2491.2,2490.9,1.6535]
[1729710861506,0.13506345,2491.1,2490.9,1.6535]
[1729710863509,0.13506345,2491.1,2491.0,0.08027557]
[1729710863708,0.13506345,2491.1,2490.9,2.222341]
[1729710863894,0.13506345,2491.1,2491.0,0.08027559]
[1729710864129,4.01396,2491.3,2491.0,0.08027559]
[1729710864416,0.13552821,2491.1,2491.0,0.08027559]
[1729710864568,4.01374,2491.5,2491.0,0.71301325]
[1729710864774,4.01301,2491.9,2491.2,4.02406]
[1729710864775,4.0134,2491.7,2491.2,4.02406]
[1729710865116,4.0134,2491.7,2491.3,0.08026062]
[1729710865309,0.13558067,2491.6,2491.3,0.08026062]
[1729710865476,0.13558067,2491.6,2491.3,1.04414568]
[1729710865802,0.13558067,2491.6,2491.3,0.96388506]
[1729710865803,4.14916067,2491.6,2491.3,0.96388506]
[1729710866676,4.01366,2491.5,2491.3,0.96388506]
[1729710866871,5.57886,2491.5,2491.2,0.01]
[1729710867108,0.13558067,2491.4,2491.2,0.01]
[1729710867420,0.13558067,2491.4,2491.0,0.01]
[1729710867421,4.01406,2491.3,2491.0,0.01]
[1729710867578,4.01406,2491.3,2491.0,0.09027208]
[1729710867907,4.01406,2491.3,2491.0,0.65280929]
[1729710867908,0.13558067,2491.2,2491.0,0.65280929]
[1729710868116,4.01406,2491.3,2491.0,0.56253721]
[1729710868271,0.13558067,2491.1,2491.0,0.56253721]
[1729710868474,8.02813,2491.3,2491.0,0.56253721]
[1729710868674,0.13558067,2491.2,2491.0,0.56253721]
[1729710868974,4.01388,2491.4,2491.0,0.56253721]
[1729710869174,0.13558067,2491.1,2491.0,0.56253721]
[1729710869374,4.01397,2491.3,2490.9,1.5104]
[1729710869589,0.13558067,2491.1,2490.9,1.5104]
[1729710869797,4.01397,2491.3,2490.9,1.5104]
[1729710870589,0.13558067,2491.2,2491.0,0.08027231]
[1729710870905,4.01383,2491.4,2490.9,5.52489]
[1729710871111,0.13558067,2491.1,2490.9,6.480857]
[1729710871315,4.01383,2491.4,2490.9,6.480857]
[1729710871664,0.13558067,2491.0,2490.9,2.466367]
[1729710871810,4.01399,2491.3,2490.9,2.466367]
[1729710871973,0.13558067,2491.0,2490.9,6.480977]
[1729710872170,4.01399,2491.3,2490.9,6.480977]
[1729710872416,0.13558067,2491.0,2490.9,6.480977]
[1729710872910,4.01399,2491.3,2490.9,6.480977]
[1729710873086,0.13558067,2491.0,2490.9,6.480977]
[1729710873294,4.01383,2491.4,2490.9,5.52501]
[1729710873498,5.57885,2491.5,2491.0,4.09464092]
[1729710873699,4.01365,2491.5,2491.0,4.09464092]
[1729710873913,4.01359,2491.6,2491.1,4.01426]
[1729710874086,4.01257,2492.2,2491.6,4.01348]
[1729710874292,4.01293,2492.0,2491.7,1.5104]
[1729710875913,4.01307,2491.9,2491.5,1.5003]
[1729710876217,4.01325,2491.8,2491.5,2.45308]
[1729710876431,4.01325,2491.8,2491.5,1.5003]
[1729710876587,4.14953764,2491.7,2491.5,1.5003]
[1729710877291,4.14953764,2491.7,2491.3,5.56276]
[1729710877292,0.13618764,2491.7,2491.3,5.56276]
[1729710877498,4.01317,2491.8,2491.4,4.09403743]
[1729710877724,0.13618764,2491.6,2491.4,1.08788248]
[1729710877924,4.01317,2491.8,2491.4,0.08025743]
[1729710878095,0.13618764,2491.5,2491.4,0.08025743]
[1729710878626,7.79042515,2492.0,2491.4,4.09405743]
[1729710878810,0.13618764,2491.7,2491.5,4.01356]
[1729710879014,4.01286,2492.0,2491.3,1.5489]
[1729710879015,4.01324,2491.8,2491.3,1.5389]
[1729710879181,0.13618764,2491.6,2491.3,1.5389]
[1729710879383,4.0135,2491.6,2491.3,1.5389]
[1729710879650,4.14988014,2491.5,2491.1,5.56316]
[1729710879931,4.14984014,2491.5,2491.1,2.21715799]
[1729710880102,4.14984014,2491.5,2491.1,1.5489]
[1729710880285,4.14984014,2491.5,2491.1,1.5389]
[1729710880486,4.01388,2491.4,2491.1,1.5389]
[1729710880883,0.13618014,2491.3,2491.1,1.5389]
[1729710882519,4.01334,2491.7,2491.2,4.09438742]
[1729710883226,8.02677,2491.7,2491.2,4.09438742]
[1729710883428,4.01334,2491.7,2491.1,5.55314]
[1729710883721,8.02745,2491.5,2491.1,1.5389]
[1729710884088,4.01388,2491.4,2491.1,1.5389]
[1729710884321,5.51478,2491.4,2490.9,5.54578]
[1729710884622,5.51478,2491.4,2491.0,0.59873706]
[1729710884820,4.01398,2491.3,2491.0,0.59873706]
[1729710884989,5.5148,2491.4,2491.0,0.59873706]
[1729710885395,1.5009,2491.4,2491.0,0.59873706]
[1729710885630,4.01398,2491.3,2491.0,0.59873706]
[1729710885787,1.5009,2491.4,2491.0,0.59873706]
[1729710885992,5.51477,2491.4,2491.0,0.59873706]
[1729710887427,4.01372,2491.5,2491.1,0.61445171]
[1729710887807,4.01397,2491.3,2491.1,0.61445171]
[1729710888005,4.01397,2491.3,2490.9,1.5313]
[1729710888327,4.01397,2491.3,2490.9,1.5213]
[1729710888627,4.01381,2491.4,2490.9,5.54587]
[1729710888834,4.01381,2491.4,2491.0,4.0946709]
[1729710889328,4.01381,2491.4,2490.9,9.56039]
[1729710889492,4.01381,2491.4,2491.0,1.00019806]
[1729710890005,4.01358,2491.6,2491.1,0.08027101]
[1729710890006,4.01367,2491.5,2491.1,0.08027101]
[1729710891102,4.01383,2491.4,2491.1,0.08027101]
[1729710891295,4.01383,2491.4,2491.1,0.66261991]
[1729710891494,0.13627754,2491.3,2491.1,0.66261991]
[1729710891907,0.13627754,2491.3,2491.0,5.01463806]
[1729710892138,0.13627754,2491.3,2491.0,1.00019806]
[1729710892492,4.15025754,2491.3,2491.0,1.00019806]
[1729710892891,5.76145754,2491.3,2491.0,1.00019806]
[1729710894039,4.01413,2491.2,2491.0,1.00019806]
[1729710894498,0.13627754,2491.1,2491.0,1.00019806]
[1729710895432,9.63923,2491.3,2491.0,1.00019806]
[1729710895630,0.13627754,2491.1,2491.0,1.00019806]
[1729710895832,5.62518,2491.3,2491.0,1.00019806]
[1729710896037,0.13627754,2491.1,2490.9,1.5213]
[1729710896224,5.62518,2491.3,2490.9,1.5213]
[1729710896419,0.13627754,2491.0,2490.9,1.5213]
[1729710896648,5.62518,2491.3,2490.9,1.5213]
[1729710897113,0.13627754,2491.2,2490.9,1.5213]
[1729710897319,0.13627754,2491.2,2490.9,2.11905406]
[1729710897632,5.62518,2491.3,2490.9,2.11905406]
[1729710897938,5.62518,2491.3,2490.9,2.12905406]
[1729710898233,0.13627754,2491.2,2490.9,2.11905406]
[1729710898432,4.15040754,2491.2,2490.9,2.11905406]
[1729710898643,9.63923,2491.3,2490.9,2.11905406]
[1729710898938,4.01413,2491.2,2490.9,2.11905406]
[1729710899145,0.13627754,2491.2,2491.0,0.65752946]
[1729710899639,5.62518,2491.3,2491.0,0.65752946]
[1729710899939,9.63924,2491.3,2491.0,0.65752946]
[1729710900120,0.13627754,2491.2,2491.0,0.65752946]
[1729710900500,4.01421,2491.2,2490.8,0.43159056]
[1729710900717,4.15062754,2491.1,2490.7,1.5892]
[1729710900899,3.77756515,2491.0,2490.5,1.6436]
[1729710901104,5.66533287,2490.9,2490.5,1.6436]
[1729710901400,9.68004287,2490.9,2490.5,1.6436]
[1729710901604,0.13596287,2490.9,2490.6,0.08028944]
[1729710901832,0.13596287,2490.9,2490.6,4.09530944]
[1729710902023,4.01431,2491.1,2490.6,4.09530944]
[1729710902222,0.13592541,2490.8,2490.7,5.65143]
[1729710902440,4.01366,2491.5,2491.0,4.01437]
[1729710902610,4.01383,2491.4,2491.1,0.48170955]
[1729710902802,0.13592541,2491.4,2491.2,1.6266]
[1729710903017,0.13592541,2491.4,2491.3,0.08026837]
[1729710903245,8.02689,2491.7,2491.3,0.08026837]
[1729710903556,4.01343,2491.7,2491.2,5.64072]
[1729710903753,0.13592541,2491.6,2491.3,0.6042157]
[1729710903963,0.13592541,2491.6,2491.3,0.68448006]
[1729710905117,0.13592541,2491.6,2491.5,4.01364]
[1729710905362,1.504,2492.1,2491.5,4.0938926]